[Event "*** Titled Tuesday Blitz"]
[Site "Chess.com"]
[Date "2019.09.03"]
[Round "3"]
[White "x-6099009240"]
[Black "valeriocarnicelli"]
[Result "1/2-1/2"]
[WhiteElo "2344"]
[BlackElo "2581"]
[TimeControl "180+2"]
[EndTime "15:42:44 PDT"]
[Termination "Game drawn - insufficient material"]

1. e4 {[%clk 0:03:01.9]} 1... e5 {[%clk 0:03:00.9]} 2. f4 {[%clk 0:03:01.2]}
2... d5 {[%clk 0:03:00.4]} 3. exd5 {[%clk 0:03:01.6]} 3... e4 {[%clk 0:03:01.7]}
4. d3 {[%clk 0:03:02.6]} 4... Nf6 {[%clk 0:03:02.4]} 5. dxe4 {[%clk 0:03:03.9]}
5... Nxe4 {[%clk 0:03:04.3]} 6. Nf3 {[%clk 0:03:05.3]} 6... Bc5 {[%clk 0:03:05]}
7. Qe2 {[%clk 0:03:06]} 7... f5 {[%clk 0:03:06.1]} 8. Be3 {[%clk 0:03:02.2]}
8... Qxd5 {[%clk 0:03:06.8]} 9. Nfd2 {[%clk 0:02:44.4]} 9... Bxe3 {[%clk
0:03:04.8]} 10. Qxe3 {[%clk 0:02:44.6]} 10... Be6 {[%clk 0:02:57]} 11. Bc4
{[%clk 0:02:35.6]} 11... Qc5 {[%clk 0:02:45.7]} 12. Qxc5 {[%clk 0:02:28.8]}
12... Nxc5 {[%clk 0:02:47.6]} 13. Nc3 {[%clk 0:02:29.4]} 13... O-O {[%clk
0:02:47]} 14. O-O-O {[%clk 0:02:26.2]} 14... Nc6 {[%clk 0:02:43.7]} 15. Rhe1
{[%clk 0:02:23.3]} 15... Rfe8 {[%clk 0:02:42.6]} 16. Bxe6+ {[%clk 0:02:18.3]}
16... Rxe6 {[%clk 0:02:41.5]} 17. Nc4 {[%clk 0:02:12.4]} 17... Rae8 {[%clk
0:02:38.3]} 18. Rxe6 {[%clk 0:02:11.8]} 18... Nxe6 {[%clk 0:02:33.8]} 19. g3
{[%clk 0:02:10.1]} 19... Rd8 {[%clk 0:02:34.4]} 20. Nd5 {[%clk 0:02:05]} 20...
Kf7 {[%clk 0:02:32.1]} 21. c3 {[%clk 0:02:03.5]} 21... Ncd4 {[%clk 0:02:11.9]}
22. Nde3 {[%clk 0:01:49.6]} 22... Nf3 {[%clk 0:02:06.5]} 23. Rxd8 {[%clk
0:01:44.4]} 23... Nxd8 {[%clk 0:02:08.4]} 24. Nxf5 {[%clk 0:01:43.9]} 24... Nxh2
{[%clk 0:02:09.4]} 25. Ne5+ {[%clk 0:01:43.9]} 25... Kf6 {[%clk 0:02:08.5]} 26.
Ne3 {[%clk 0:01:35.5]} 26... Nf7 {[%clk 0:02:09.5]} 27. Nd5+ {[%clk 0:01:32.5]}
27... Ke6 {[%clk 0:02:06.7]} 28. Nxc7+ {[%clk 0:01:32.8]} 28... Kf6 {[%clk
0:02:02.2]} 29. Ne8+ {[%clk 0:01:26.8]} 29... Ke7 {[%clk 0:01:59.5]} 30. Nxg7
{[%clk 0:01:26.7]} 30... Nxe5 {[%clk 0:01:59.2]} 31. fxe5 {[%clk 0:01:28.6]}
31... Nf3 {[%clk 0:01:58.5]} 32. Nf5+ {[%clk 0:01:09.2]} 32... Kd7 {[%clk
0:01:58.5]} 33. Ne3 {[%clk 0:00:46.6]} 33... Nxe5 {[%clk 0:01:59]} 34. Kd2
{[%clk 0:00:48.5]} 34... Ke6 {[%clk 0:01:59.4]} 35. c4 {[%clk 0:00:46.6]} 35...
Nc6 {[%clk 0:01:56.2]} 36. Kc3 {[%clk 0:00:45.7]} 36... Ke5 {[%clk 0:01:56.5]}
37. b4 {[%clk 0:00:45.3]} 37... Ke4 {[%clk 0:01:57.1]} 38. Nd5 {[%clk
0:00:43.8]} 38... Kf3 {[%clk 0:01:55.8]} 39. Nf6 {[%clk 0:00:40.7]} 39... h6
{[%clk 0:01:56.1]} 40. Ng8 {[%clk 0:00:38.6]} 40... h5 {[%clk 0:01:53.2]} 41.
Nf6 {[%clk 0:00:38.3]} 41... Kxg3 {[%clk 0:01:53.7]} 42. Nxh5+ {[%clk
0:00:39.8]} 42... Kf3 {[%clk 0:01:55.3]} 43. b5 {[%clk 0:00:36.2]} 43... Ne7
{[%clk 0:01:50.1]} 44. Kd4 {[%clk 0:00:33.7]} 44... b6 {[%clk 0:01:46]} 45. Nf6
{[%clk 0:00:32.1]} 45... Ke2 {[%clk 0:01:43.2]} 46. Nd5 {[%clk 0:00:33]} 46...
Nc8 {[%clk 0:01:40.1]} 47. Kc3 {[%clk 0:00:27.7]} 47... Nd6 {[%clk 0:01:38.3]}
48. Ne7 {[%clk 0:00:24.5]} 48... Ke3 {[%clk 0:01:21.4]} 49. a4 {[%clk
0:00:25.6]} 49... Ke4 {[%clk 0:01:21]} 50. Nc6 {[%clk 0:00:26.8]} 50... Nc8
{[%clk 0:01:22]} 51. a5 {[%clk 0:00:25.2]} 51... bxa5 {[%clk 0:01:20.5]} 52.
Nxa5 {[%clk 0:00:27.1]} 52... Ke5 {[%clk 0:01:21]} 53. Nc6+ {[%clk 0:00:25]}
53... Kd6 {[%clk 0:01:22]} 54. Kb4 {[%clk 0:00:18.2]} 54... Kc7 {[%clk
0:01:21.4]} 55. Na5 {[%clk 0:00:14.2]} 55... Ne7 {[%clk 0:01:20.2]} 56. Nb3
{[%clk 0:00:13.3]} 56... Kb6 {[%clk 0:01:20.4]} 57. c5+ {[%clk 0:00:13.3]} 57...
Kc7 {[%clk 0:01:20.7]} 58. Kc4 {[%clk 0:00:13.5]} 58... Nf5 {[%clk 0:01:21.2]}
59. Nd4 {[%clk 0:00:14.2]} 59... Ne3+ {[%clk 0:01:21.7]} 60. Kb4 {[%clk
0:00:13.2]} 60... Nd5+ {[%clk 0:01:22.7]} 61. Kc4 {[%clk 0:00:14.7]} 61... Ne3+
{[%clk 0:01:23.8]} 62. Kb3 {[%clk 0:00:14.6]} 62... Kb7 {[%clk 0:01:23.3]} 63.
Kb4 {[%clk 0:00:13.6]} 63... Nd5+ {[%clk 0:01:23.9]} 64. Ka5 {[%clk 0:00:15.1]}
64... Ne3 {[%clk 0:01:18.5]} 65. c6+ {[%clk 0:00:14.4]} 65... Kb8 {[%clk
0:01:16.1]} 66. Kb4 {[%clk 0:00:13.5]} 66... Kc7 {[%clk 0:01:15.8]} 67. Kc5
{[%clk 0:00:14.1]} 67... Ng4 {[%clk 0:01:06.2]} 68. Ne6+ {[%clk 0:00:15.1]}
68... Kc8 {[%clk 0:01:06.3]} 69. Kd6 {[%clk 0:00:09.5]} 69... Ne3 {[%clk
0:01:05.3]} 70. Nd4 {[%clk 0:00:04.6]} 70... Nc4+ {[%clk 0:01:05.1]} 71. Kc5
{[%clk 0:00:06.2]} 71... Ne5 {[%clk 0:01:05.7]} 72. Nb3 {[%clk 0:00:06.7]} 72...
Kc7 {[%clk 0:01:05.8]} 73. Nd2 {[%clk 0:00:05.9]} 73... Nd3+ {[%clk 0:01:06.6]}
74. Kc4 {[%clk 0:00:05.9]} 74... Ne5+ {[%clk 0:01:07.4]} 75. Kb4 {[%clk
0:00:07.5]} 75... Nd3+ {[%clk 0:01:05.6]} 76. Kc4 {[%clk 0:00:08.9]} 76... Ne5+
{[%clk 0:01:06.6]} 77. Kd5 {[%clk 0:00:10.5]} 77... Nd3 {[%clk 0:01:07.6]} 78.
Ne4 {[%clk 0:00:11.2]} 78... Nb4+ {[%clk 0:01:05.3]} 79. Kc4 {[%clk 0:00:12]}
79... Nc2 {[%clk 0:01:05.3]} 80. Nc3 {[%clk 0:00:13]} 80... Ne3+ {[%clk
0:01:06.1]} 81. Kc5 {[%clk 0:00:14.4]} 81... Nf5 {[%clk 0:01:05.5]} 82. Nd5+
{[%clk 0:00:15.8]} 82... Kc8 {[%clk 0:01:06.9]} 83. Nb4 {[%clk 0:00:16.2]} 83...
Kc7 {[%clk 0:01:05.8]} 84. Nd3 {[%clk 0:00:17.2]} 84... Ne3 {[%clk 0:01:05.4]}
85. Nf4 {[%clk 0:00:17.6]} 85... Nc2 {[%clk 0:01:05.7]} 86. Ne6+ {[%clk
0:00:18.9]} 86... Kc8 {[%clk 0:01:07]} 87. Kd6 {[%clk 0:00:17.1]} 87... Na3
{[%clk 0:01:06.2]} 88. Nd4 {[%clk 0:00:17.6]} 88... Nc4+ {[%clk 0:01:05.2]} 89.
Kc5 {[%clk 0:00:18.2]} 89... Nb6 {[%clk 0:01:06]} 90. Kb4 {[%clk 0:00:19.1]}
90... Kc7 {[%clk 0:01:06.4]} 91. Ka5 {[%clk 0:00:20.4]} 91... Nd5 {[%clk
0:01:01.7]} 92. Ka6 {[%clk 0:00:20.5]} 92... Kb8 {[%clk 0:01:02.9]} 93. Ne6
{[%clk 0:00:20.4]} 93... Nb4+ {[%clk 0:01:03.1]} 94. Ka5 {[%clk 0:00:21.2]}
94... Nd5 {[%clk 0:01:04.2]} 95. Nc5 {[%clk 0:00:20.7]} 95... Nc7 {[%clk
0:00:56.1]} 96. Nd7+ {[%clk 0:00:20.5]} 96... Kc8 {[%clk 0:00:57]} 97. Ne5
{[%clk 0:00:21.4]} 97... Kb8 {[%clk 0:00:57.6]} 98. Nc4 {[%clk 0:00:22.4]} 98...
Kc8 {[%clk 0:00:58.1]} 99. Nd6+ {[%clk 0:00:23.6]} 99... Kb8 {[%clk 0:00:59.1]}
100. Nf7 {[%clk 0:00:23.1]} 100... Nd5 {[%clk 0:00:59]} 101. Ne5 {[%clk
0:00:23.1]} 101... Nc7 {[%clk 0:00:58]} 102. Kb4 {[%clk 0:00:23.9]} 102... Ne6
{[%clk 0:00:56.1]} 103. Ka4 {[%clk 0:00:23.7]} 103... Kc7 {[%clk 0:00:56.5]}
104. Ka5 {[%clk 0:00:24.5]} 104... Nc5 {[%clk 0:00:57.9]} 105. Nc4 {[%clk
0:00:22.6]} 105... Nb3+ {[%clk 0:00:56.6]} 106. Ka6 {[%clk 0:00:21.9]} 106...
Nd4 {[%clk 0:00:57.8]} 107. Ne3 {[%clk 0:00:20.7]} 107... Nxc6 {[%clk
0:00:58.5]} 108. Nd5+ {[%clk 0:00:21.3]} 108... Kd6 {[%clk 0:00:59.1]} 109. bxc6
{[%clk 0:00:13.1]} 109... Kxc6 {[%clk 0:01:00.3]} 110. Kxa7 {[%clk 0:00:11.7]}
1/2-1/2

[Event "*** Titled Tuesday Blitz"]
[Site "Chess.com"]
[Date "2019.09.03"]
[Round "3"]
[White "TheBigBoss04"]
[Black "oskariot"]
[Result "0-1"]
[WhiteElo "2535"]
[BlackElo "2756"]
[TimeControl "180+2"]
[EndTime "15:43:31 PDT"]
[Termination "oskariot won by resignation"]

1. Nf3 {[%clk 0:03:01.9]} 1... g6 {[%clk 0:02:57.7]} 2. g3 {[%clk 0:02:58.4]}
2... Bg7 {[%clk 0:02:58.7]} 3. Bg2 {[%clk 0:03:00.1]} 3... c5 {[%clk 0:03:00.2]}
4. O-O {[%clk 0:02:59.4]} 4... Nc6 {[%clk 0:03:01.6]} 5. e4 {[%clk 0:02:58.9]}
5... e6 {[%clk 0:03:02.3]} 6. d3 {[%clk 0:02:57.9]} 6... Nge7 {[%clk 0:03:03.8]}
7. c3 {[%clk 0:02:57]} 7... d5 {[%clk 0:03:04.3]} 8. Re1 {[%clk 0:02:55.1]} 8...
b6 {[%clk 0:03:05.4]} 9. exd5 {[%clk 0:02:52.8]} 9... Nxd5 {[%clk 0:03:04.1]}
10. Nbd2 {[%clk 0:02:52.5]} 10... Bb7 {[%clk 0:03:03.4]} 11. Ne4 {[%clk
0:02:53.8]} 11... h6 {[%clk 0:03:01.1]} 12. Qc2 {[%clk 0:02:55.3]} 12... O-O
{[%clk 0:03:01.3]} 13. a3 {[%clk 0:02:51.4]} 13... f5 {[%clk 0:02:52.6]} 14.
Ned2 {[%clk 0:02:51.5]} 14... e5 {[%clk 0:02:54.1]} 15. Nc4 {[%clk 0:02:51.1]}
15... Qc7 {[%clk 0:02:54.4]} 16. Ne3 {[%clk 0:02:49.9]} 16... Nxe3 {[%clk
0:02:54.7]} 17. Bxe3 {[%clk 0:02:50.7]} 17... Rad8 {[%clk 0:02:51.9]} 18. Rad1
{[%clk 0:02:52.1]} 18... Kh7 {[%clk 0:02:52.6]} 19. Bc1 {[%clk 0:02:50.7]} 19...
Rfe8 {[%clk 0:02:47.9]} 20. h4 {[%clk 0:02:48.6]} 20... Kh8 {[%clk 0:02:20.9]}
21. b3 {[%clk 0:02:37.3]} 21... Qf7 {[%clk 0:02:09.5]} 22. Bb2 {[%clk
0:02:36.5]} 22... Na5 {[%clk 0:01:42.4]} 23. b4 {[%clk 0:02:37.4]} 23... Qb3
{[%clk 0:01:28.3]} 24. Qc1 {[%clk 0:02:32.9]} 24... cxb4 {[%clk 0:01:16.9]} 25.
cxb4 {[%clk 0:02:06.7]} 25... Nc6 {[%clk 0:00:46.7]} 26. Nxe5 {[%clk 0:02:07.7]}
26... Nxe5 {[%clk 0:00:37.3]} 27. Bxe5 {[%clk 0:02:08.7]} 27... Rxe5 {[%clk
0:00:30]} 28. Rxe5 {[%clk 0:01:53.3]} 28... Bxe5 {[%clk 0:00:31.9]} 29. Qxh6+
{[%clk 0:01:53.1]} 29... Kg8 {[%clk 0:00:32.7]} 30. Qxg6+ {[%clk 0:01:48.8]}
30... Bg7 {[%clk 0:00:32.9]} 31. Re1 {[%clk 0:01:33.3]} 31... Bxg2 {[%clk
0:00:30.2]} 32. Re7 {[%clk 0:01:34.6]} 32... Qb2 {[%clk 0:00:14]} 33. Qf7+
{[%clk 0:01:29.3]} 33... Kh8 {[%clk 0:00:14.9]} 34. Qh5+ {[%clk 0:01:10.2]}
34... Kg8 {[%clk 0:00:15.6]} 35. Kxg2 {[%clk 0:01:09.1]} 35... Qf6 {[%clk
0:00:10.8]} 36. Rxa7 {[%clk 0:01:10]} 36... f4 {[%clk 0:00:11.3]} 37. Qg4 {[%clk
0:01:05.7]} 37... fxg3 {[%clk 0:00:11.7]} 38. fxg3 {[%clk 0:01:04]} 38... Rf8
{[%clk 0:00:11.5]} 39. Qe2 {[%clk 0:00:44.5]} 39... Qc6+ {[%clk 0:00:12.6]} 40.
Kh2 {[%clk 0:00:44.8]} 40... Qd5 {[%clk 0:00:11]} 41. Re7 {[%clk 0:00:40.6]}
41... Bd4 {[%clk 0:00:08.4]} 42. Qg4+ {[%clk 0:00:35.9]} 42... Kh8 {[%clk
0:00:06.3]} 43. Qe4 {[%clk 0:00:21.9]} 43... Qxe4 {[%clk 0:00:04.6]} 44. Rxe4
{[%clk 0:00:22.2]} 44... Bb2 {[%clk 0:00:05.7]} 45. a4 {[%clk 0:00:23.1]} 45...
Ra8 {[%clk 0:00:07.3]} 46. b5 {[%clk 0:00:23.7]} 46... Rd8 {[%clk 0:00:06.4]}
47. Re6 {[%clk 0:00:23.9]} 47... Bd4 {[%clk 0:00:07.6]} 48. Kh3 {[%clk
0:00:24.2]} 48... Bc5 {[%clk 0:00:08.9]} 49. Rc6 {[%clk 0:00:22.9]} 49... Rxd3
{[%clk 0:00:09.7]} 50. a5 {[%clk 0:00:24.4]} 50... Bd6 {[%clk 0:00:11.2]} 51.
Kg4 {[%clk 0:00:19.2]} 51... bxa5 {[%clk 0:00:09.4]} 52. b6 {[%clk 0:00:20.2]}
52... Bxg3 {[%clk 0:00:09.3]} 53. b7 {[%clk 0:00:19.6]} 53... Rb3 {[%clk
0:00:10.5]} 54. h5 {[%clk 0:00:10.1]} 54... Kh7 {[%clk 0:00:07.9]} 55. Kg5
{[%clk 0:00:08]} 55... Rb5+ {[%clk 0:00:07.3]} 56. Kg4 {[%clk 0:00:08.9]} 56...
Rb3 {[%clk 0:00:08.3]} 57. Ra6 {[%clk 0:00:08]} 57... Bc7 {[%clk 0:00:09.1]} 58.
Ra7 {[%clk 0:00:05.9]} 58... Rb4+ {[%clk 0:00:09.5]} 59. Kf5 {[%clk 0:00:06.9]}
59... Rb5+ {[%clk 0:00:06.8]} 60. Ke6 {[%clk 0:00:08.1]} 60... Bb8 {[%clk
0:00:07.3]} 61. Ra6 {[%clk 0:00:05.9]} 61... Rxb7 {[%clk 0:00:07.6]} 62. Rxa5
{[%clk 0:00:06.7]} 62... Rb6+ {[%clk 0:00:08.7]} 63. Kd7 {[%clk 0:00:07.6]}
63... Bf4 {[%clk 0:00:09.6]} 64. Rf5 {[%clk 0:00:07.5]} 64... Bc1 {[%clk
0:00:09.5]} 65. Rd5 {[%clk 0:00:08.5]} 65... Rb2 {[%clk 0:00:09.5]} 66. Ke6
{[%clk 0:00:09.2]} 66... Rf2 {[%clk 0:00:09.8]} 67. Rf5 {[%clk 0:00:09.8]} 67...
Re2+ {[%clk 0:00:10.4]} 68. Kd5 {[%clk 0:00:11.1]} 68... Bb2 {[%clk 0:00:10.7]}
69. Kc4 {[%clk 0:00:11.2]} 69... Kh6 {[%clk 0:00:12.1]} 70. Kd3 {[%clk
0:00:12.3]} 70... Rg2 {[%clk 0:00:12.9]} 71. Ke3 {[%clk 0:00:13.3]} 71... Bc1+
{[%clk 0:00:13.9]} 72. Kf3 {[%clk 0:00:14.3]} 72... Rg8 {[%clk 0:00:15.5]} 73.
Rc5 {[%clk 0:00:14.2]} 73... Bg5 {[%clk 0:00:15.3]} 74. Rd5 {[%clk 0:00:15.1]}
74... Kxh5 {[%clk 0:00:16.5]} 75. Rd3 {[%clk 0:00:16.3]} 75... Re8 {[%clk
0:00:17.5]} 76. Rb3 {[%clk 0:00:16.2]} 76... Kg6 {[%clk 0:00:18.3]} 77. Rb5
{[%clk 0:00:16]} 77... Re3+ {[%clk 0:00:16.7]} 78. Kg4 {[%clk 0:00:17.1]} 78...
Re4+ {[%clk 0:00:18]} 79. Kf3 {[%clk 0:00:17.6]} 79... Ra4 {[%clk 0:00:19.5]}
80. Rb6+ {[%clk 0:00:18.1]} 80... Bf6 {[%clk 0:00:20.8]} 81. Rb5 {[%clk
0:00:19.4]} 81... Kf7 {[%clk 0:00:22]} 82. Rb6 {[%clk 0:00:20.1]} 82... Ke7
{[%clk 0:00:22.7]} 83. Rb7+ {[%clk 0:00:19.8]} 83... Ke6 {[%clk 0:00:24]} 84.
Rb6+ {[%clk 0:00:21]} 84... Kf5 {[%clk 0:00:25.2]} 85. Rb3 {[%clk 0:00:20.6]}
85... Be5 {[%clk 0:00:25.1]} 86. Rd3 {[%clk 0:00:21.5]} 86... Rh4 {[%clk
0:00:26]} 87. Ke2 {[%clk 0:00:22.7]} 87... Ke4 {[%clk 0:00:26.2]} 88. Re3+
{[%clk 0:00:24]} 88... Kd4 {[%clk 0:00:27.7]} 89. Rf3 {[%clk 0:00:25.1]} 89...
Rh2+ {[%clk 0:00:28.1]} 90. Rf2 {[%clk 0:00:26.3]} 90... Rh1 {[%clk 0:00:29.6]}
91. Rf1 {[%clk 0:00:27.3]} 91... Rh8 {[%clk 0:00:29.9]} 92. Rd1+ {[%clk
0:00:28.4]} 92... Ke4 {[%clk 0:00:30.7]} 93. Rf1 {[%clk 0:00:29.5]} 93... Ra8
{[%clk 0:00:31.7]} 94. Rd1 {[%clk 0:00:30.5]} 94... Bf4 {[%clk 0:00:32.1]} 95.
Rd8 {[%clk 0:00:25.9]} 95... Ra2+ {[%clk 0:00:32.4]} 96. Kd1 {[%clk 0:00:26]}
96... Be3 {[%clk 0:00:31.8]} 97. Rd7 {[%clk 0:00:23.2]} 97... Bd4 {[%clk
0:00:32.4]} 98. Ke1 {[%clk 0:00:18.9]} 98... Kd3 {[%clk 0:00:26.4]} 99. Kf1
{[%clk 0:00:19.8]} 99... Rf2+ {[%clk 0:00:27.8]} 100. Ke1 {[%clk 0:00:21.2]}
100... Rg2 {[%clk 0:00:25]} 101. Rf7 {[%clk 0:00:22.2]} 101... Be3 {[%clk
0:00:25.5]} 102. Rd7+ {[%clk 0:00:22.2]} 102... Ke4 {[%clk 0:00:26]} 103. Kd1
{[%clk 0:00:22.3]} 103... Ra2 {[%clk 0:00:25.8]} 104. Re7+ {[%clk 0:00:20.6]}
104... Kd3 {[%clk 0:00:27.1]} 105. Rd7+ {[%clk 0:00:18.7]} 105... Bd4 {[%clk
0:00:28.1]} 106. Rc7 {[%clk 0:00:20.2]} 106... Rh2 {[%clk 0:00:21.6]} 107. Re7
{[%clk 0:00:16.8]} 107... Rg2 {[%clk 0:00:22.5]} 108. Re8 {[%clk 0:00:09.7]}
108... Rb2 {[%clk 0:00:23.2]} 109. Rc8 {[%clk 0:00:09.8]} 109... Bb6 {[%clk
0:00:22.9]} 110. Rd8+ {[%clk 0:00:10.5]} 110... Bxd8 {[%clk 0:00:21.4]} 0-1

[Event "*** Titled Tuesday Blitz"]
[Site "Chess.com"]
[Date "2019.09.03"]
[Round "3"]
[White "Jospem"]
[Black "pheonixking2000"]
[Result "1-0"]
[WhiteElo "2936"]
[BlackElo "2706"]
[TimeControl "180+2"]
[EndTime "15:43:50 PDT"]
[Termination "Jospem won by resignation"]

1. c4 {[%clk 0:03:01.9]} 1... c6 {[%clk 0:02:58.8]} 2. Nf3 {[%clk 0:03:03.1]}
2... d5 {[%clk 0:02:59.4]} 3. g3 {[%clk 0:03:05]} 3... Nf6 {[%clk 0:03:00.4]} 4.
Bg2 {[%clk 0:03:06.4]} 4... g6 {[%clk 0:03:01.3]} 5. O-O {[%clk 0:03:07.7]} 5...
Bg7 {[%clk 0:03:01.4]} 6. b3 {[%clk 0:03:09.2]} 6... O-O {[%clk 0:03:01.5]} 7.
Bb2 {[%clk 0:03:10.3]} 7... Nbd7 {[%clk 0:03:02.9]} 8. d3 {[%clk 0:03:11.4]}
8... b6 {[%clk 0:02:59.6]} 9. Nc3 {[%clk 0:03:12]} 9... Bb7 {[%clk 0:03:00.2]}
10. Qc2 {[%clk 0:03:12.3]} 10... e5 {[%clk 0:02:59.7]} 11. e4 {[%clk 0:03:09.2]}
11... Re8 {[%clk 0:02:53.2]} 12. Rad1 {[%clk 0:03:07]} 12... Rc8 {[%clk
0:02:52.7]} 13. b4 {[%clk 0:03:04.2]} 13... Qe7 {[%clk 0:02:46.1]} 14. a3 {[%clk
0:03:04.5]} 14... d4 {[%clk 0:02:37.4]} 15. Ne2 {[%clk 0:03:05.1]} 15... c5
{[%clk 0:02:37.8]} 16. b5 {[%clk 0:03:04.8]} 16... h6 {[%clk 0:02:36.5]} 17.
Rde1 {[%clk 0:02:51.5]} 17... Rcd8 {[%clk 0:02:29.9]} 18. Bc1 {[%clk 0:02:40.8]}
18... Nxe4 {[%clk 0:02:02.7]} 19. dxe4 {[%clk 0:02:40.4]} 19... Nf6 {[%clk
0:02:03.8]} 20. Nxe5 {[%clk 0:02:04.4]} 20... Qxe5 {[%clk 0:02:02.3]} 21. Nf4
{[%clk 0:02:05.9]} 21... d3 {[%clk 0:01:58.9]} 22. Nxd3 {[%clk 0:01:57]} 22...
Qd4 {[%clk 0:02:00.1]} 23. e5 {[%clk 0:01:32]} 23... Bxg2 {[%clk 0:01:19.1]} 24.
Kxg2 {[%clk 0:01:33.9]} 24... Qxd3 {[%clk 0:01:16.2]} 25. Qxd3 {[%clk
0:01:35.8]} 25... Rxd3 {[%clk 0:01:17.1]} 26. exf6 {[%clk 0:01:37.7]} 26... Rxe1
{[%clk 0:01:16.9]} 27. Rxe1 {[%clk 0:01:39.6]} 27... Bxf6 {[%clk 0:01:18.4]} 28.
Re8+ {[%clk 0:01:40.2]} 28... Kg7 {[%clk 0:01:16]} 29. Ra8 {[%clk 0:01:39.1]}
29... Rc3 {[%clk 0:00:56]} 30. Be3 {[%clk 0:01:39.9]} 30... Rxc4 {[%clk
0:00:55.9]} 31. Rxa7 {[%clk 0:01:40.5]} 31... Rc3 {[%clk 0:00:48.7]} 32. a4
{[%clk 0:01:27.9]} 32... Ra3 {[%clk 0:00:40.2]} 33. Kf3 {[%clk 0:00:56.5]} 33...
c4 {[%clk 0:00:23]} 34. Ke4 {[%clk 0:00:51.8]} 34... c3 {[%clk 0:00:24.2]} 35.
Kd3 {[%clk 0:00:46.6]} 35... Ra2 {[%clk 0:00:25.3]} 36. Bxb6 {[%clk 0:00:18.4]}
36... Rd2+ {[%clk 0:00:26]} 37. Ke3 {[%clk 0:00:19.9]} 37... Rd6 {[%clk
0:00:12.5]} 38. Bc5 {[%clk 0:00:21.1]} 38... c2 {[%clk 0:00:10.3]} 39. Ba3
{[%clk 0:00:21.9]} 39... Rd1 {[%clk 0:00:03.5]} 40. Rc7 {[%clk 0:00:21.4]} 40...
Ra1 {[%clk 0:00:05]} 41. Bb4 {[%clk 0:00:08.3]} 41... c1=Q+ {[%clk 0:00:05]} 42.
Rxc1 {[%clk 0:00:10.2]} 42... Rxc1 {[%clk 0:00:06.8]} 43. Kd3 {[%clk 0:00:11.9]}
43... Rb1 {[%clk 0:00:07.1]} 44. Kc4 {[%clk 0:00:12.5]} 44... Bd8 {[%clk
0:00:05.5]} 45. a5 {[%clk 0:00:11.9]} 45... Kf6 {[%clk 0:00:04.1]} 46. b6 {[%clk
0:00:13]} 46... Ke6 {[%clk 0:00:05.7]} 47. b7 {[%clk 0:00:09.8]} 47... Bc7
{[%clk 0:00:06.3]} 48. a6 {[%clk 0:00:11]} 48... Bb8 {[%clk 0:00:06]} 49. Bc5
{[%clk 0:00:09.1]} 49... Kd7 {[%clk 0:00:06.3]} 50. Be3 {[%clk 0:00:02.7]} 50...
Kc6 {[%clk 0:00:05.2]} 51. Bxh6 {[%clk 0:00:03.8]} 51... Ra1 {[%clk 0:00:05.9]}
52. Bf4 {[%clk 0:00:05.2]} 52... Rxa6 {[%clk 0:00:07.2]} 53. Bxb8 {[%clk
0:00:05.9]} 53... Kxb7 {[%clk 0:00:07]} 54. Bf4 {[%clk 0:00:07.4]} 54... Ra2
{[%clk 0:00:07.4]} 55. Be3 {[%clk 0:00:04.4]} 55... Kc6 {[%clk 0:00:08.8]} 56.
Kd4 {[%clk 0:00:05.8]} 56... Kd6 {[%clk 0:00:09.4]} 57. Ke4 {[%clk 0:00:07.3]}
57... Ke6 {[%clk 0:00:10.9]} 58. h4 {[%clk 0:00:08.6]} 58... Ra4+ {[%clk
0:00:12.3]} 59. Kf3 {[%clk 0:00:09.8]} 59... Kf5 {[%clk 0:00:14]} 60. Bb6 {[%clk
0:00:11.1]} 60... Ra3+ {[%clk 0:00:13.5]} 61. Be3 {[%clk 0:00:12.4]} 61... Rb3
{[%clk 0:00:15.4]} 62. g4+ {[%clk 0:00:10.4]} 62... Ke5 {[%clk 0:00:16.9]} 63.
h5 {[%clk 0:00:09.9]} 63... gxh5 {[%clk 0:00:17.7]} 64. gxh5 {[%clk 0:00:11.8]}
64... Kf5 {[%clk 0:00:18.4]} 65. h6 {[%clk 0:00:12.7]} 65... Kg6 {[%clk
0:00:19.9]} 66. Kg4 {[%clk 0:00:13.9]} 66... Rb4+ {[%clk 0:00:20.3]} 67. Kg3
{[%clk 0:00:13.9]} 67... f5 {[%clk 0:00:16.2]} 68. Bf4 {[%clk 0:00:14.9]} 68...
Rb3+ {[%clk 0:00:17.2]} 69. Be3 {[%clk 0:00:15]} 69... Rb4 {[%clk 0:00:17.2]}
70. Bf4 {[%clk 0:00:15.8]} 70... Ra4 {[%clk 0:00:18.7]} 71. f3 {[%clk 0:00:16]}
71... Ra3 {[%clk 0:00:16.1]} 72. Bd2 {[%clk 0:00:16.6]} 72... Rd3 {[%clk
0:00:16.2]} 73. Bc1 {[%clk 0:00:17.6]} 73... Rd4 {[%clk 0:00:14]} 74. Be3 {[%clk
0:00:18.3]} 74... Rc4 {[%clk 0:00:13]} 75. Bd2 {[%clk 0:00:19.5]} 75... Kf6
{[%clk 0:00:08.9]} 76. Bf4 {[%clk 0:00:19]} 76... Kf7 {[%clk 0:00:07.3]} 77. Be5
{[%clk 0:00:18.9]} 77... Kg6 {[%clk 0:00:05.2]} 78. Bf4 {[%clk 0:00:19.7]} 78...
Ra4 {[%clk 0:00:05.2]} 79. Bd2 {[%clk 0:00:20.4]} 79... Ra1 {[%clk 0:00:06.4]}
80. Be3 {[%clk 0:00:18.9]} 80... Re1 {[%clk 0:00:07]} 81. Kf2 {[%clk 0:00:19]}
81... Rh1 {[%clk 0:00:07.8]} 82. Kg3 {[%clk 0:00:19.9]} 82... Rh5 {[%clk
0:00:08.6]} 83. Kg2 {[%clk 0:00:16.6]} 83... Kf6 {[%clk 0:00:06.6]} 84. Bd2
{[%clk 0:00:14.8]} 84... Ke5 {[%clk 0:00:06.4]} 85. Kg3 {[%clk 0:00:15.3]} 85...
Ke6 {[%clk 0:00:05.9]} 86. Be3 {[%clk 0:00:13.5]} 86... Kf6 {[%clk 0:00:07.1]}
87. Kg2 {[%clk 0:00:12.6]} 87... Ke5 {[%clk 0:00:05.1]} 88. Kg3 {[%clk
0:00:13.4]} 88... Rh1 {[%clk 0:00:05.4]} 89. Bg5 {[%clk 0:00:07.7]} 89... Ke6
{[%clk 0:00:04.5]} 90. Be3 {[%clk 0:00:06.4]} 90... Kf6 {[%clk 0:00:03.7]} 91.
Kg2 {[%clk 0:00:07.8]} 91... Rh5 {[%clk 0:00:04.2]} 92. Bf4 {[%clk 0:00:08.2]}
92... Kg6 {[%clk 0:00:05.4]} 93. Bd2 {[%clk 0:00:09]} 93... Rh4 {[%clk
0:00:06.5]} 94. Kg3 {[%clk 0:00:09.9]} 94... Rd4 {[%clk 0:00:07.8]} 95. Be3
{[%clk 0:00:11.2]} 95... Rc4 {[%clk 0:00:09]} 96. Bf4 {[%clk 0:00:11.4]} 96...
Kf6 {[%clk 0:00:09.1]} 97. Bd2 {[%clk 0:00:11.5]} 97... Rc8 {[%clk 0:00:06]} 98.
Be3 {[%clk 0:00:11.5]} 98... Ke5 {[%clk 0:00:06.3]} 99. Bg5 {[%clk 0:00:11.5]}
99... Rg8 {[%clk 0:00:04.2]} 100. Kh4 {[%clk 0:00:12.3]} 100... f4 {[%clk
0:00:04.6]} 101. Kg4 {[%clk 0:00:13.4]} 101... Ke6 {[%clk 0:00:03]} 102. Kxf4
{[%clk 0:00:14.1]} 102... Kf7 {[%clk 0:00:04.6]} 103. Kf5 {[%clk 0:00:15.4]}
103... Ra8 {[%clk 0:00:06.1]} 104. Bf6 {[%clk 0:00:15.6]} 104... Kg8 {[%clk
0:00:05.6]} 105. Kg6 {[%clk 0:00:16.1]} 105... Ra7 {[%clk 0:00:07.2]} 106. f4
{[%clk 0:00:15.2]} 106... Rg7+ {[%clk 0:00:08.2]} 107. Kh5 {[%clk 0:00:15.3]}
107... Rg1 {[%clk 0:00:08.8]} 108. Bd4 {[%clk 0:00:14.1]} 108... Kh7 {[%clk
0:00:10]} 109. Bxg1 {[%clk 0:00:14.3]} 1-0